bitfinex/quotes_SOLUSD_20230905
["timestamp","ask_amount","ask_price","bid_price","bid_amount"]
[1693893216039,13.02361036,19.309,19.3,8.082]
[1693893221554,4.94461036,19.309,19.3,8.082]
[1693893224956,35.08261036,19.31,19.3,8.082]
[1693893225147,55.0,19.309,19.3,8.082]
[1693893225738,63.079,19.309,19.3,8.082]
[1693893226452,55.0,19.309,19.3,8.082]
[1693893226844,63.079,19.309,19.3,8.082]
[1693893227657,27.00461036,19.31,19.3,8.082]
[1693893227958,55.0,19.309,19.3,8.082]
[1693893232557,8.081,19.305,19.293,57.013]
[1693893232737,8.082,19.301,19.291,28.8826561]
[1693893232936,82.06,19.3,19.292,8.085]
[1693893233142,35.143,19.3,19.293,2.67380743]
[1693893233550,35.143,19.3,19.293,10.75880743]
[1693893233855,35.143,19.3,19.292,8.086]
[1693893234059,35.143,19.3,19.293,2.96077602]
[1693893234261,55.0,19.299,19.293,2.96077602]
[1693893234465,8.084,19.298,19.292,8.086]
[1693893234943,8.084,19.298,19.292,2.61051891]
[1693893236759,8.084,19.298,19.292,10.69651891]
[1693893237253,8.084,19.298,19.292,2.61051891]
[1693893237457,8.084,19.296,19.292,2.61051891]
[1693893239455,8.084,19.297,19.292,10.69551891]
[1693893239659,98.6779,19.3,19.292,36.81951891]
[1693893239957,55.0,19.299,19.292,36.81951891]
[1693893240656,63.083,19.299,19.292,36.81951891]
[1693893241050,63.083,19.299,19.292,34.209]
[1693893241656,55.0,19.299,19.293,2.53696728]
[1693893241953,55.0,19.299,19.294,8.085]
[1693893242448,125.7379,19.3,19.294,8.085]
[1693893242643,90.5949,19.3,19.294,8.085]
[1693893243051,8.082,19.301,19.294,8.085]
[1693893246059,7.582,19.301,19.294,8.085]
[1693893257577,8.083,19.299,19.294,8.085]
[1693893258474,8.083,19.299,19.293,8.085]
[1693893259367,8.083,19.299,19.292,8.086]
[1693893260271,8.083,19.299,19.289,20.0]
[1693893260472,8.083,19.299,19.29,3.12228049]
[1693893260774,8.083,19.299,19.288,4.2637025]
[1693893261166,8.083,19.299,19.291,8.086]
[1693893279389,8.083,19.299,19.29,8.086]
[1693893279585,8.083,19.299,19.287,46.13]
[1693893279782,8.083,19.299,19.288,3.64410409]
[1693893279985,8.083,19.299,19.291,8.086]
[1693893284090,8.083,19.299,19.292,2.59267043]
[1693893284292,8.083,19.299,19.293,8.085]
[1693893286495,8.083,19.299,19.289,3.84098197]
[1693893286704,8.083,19.299,19.292,8.085]
[1693893292303,8.082,19.302,19.293,2.55979107]
[1693893292607,55.0,19.301,19.296,8.084]
[1693893293400,63.082,19.301,19.296,8.084]
[1693893293999,116.2727,19.305,19.296,8.084]
[1693893294000,90.1647,19.305,19.296,8.084]
[1693893294397,90.1647,19.305,19.297,2.76886802]
[1693893294705,90.1647,19.305,19.299,34.197]
[1693893295087,8.079,19.308,19.299,34.197]
[1693893295289,53.161,19.31,19.299,34.197]
[1693893295487,143.9588,19.31,19.299,34.197]
[1693893295695,90.7978,19.31,19.299,34.197]
[1693893296005,90.7978,19.31,19.3,3.10979361]
[1693893296305,8.078,19.31,19.303,34.19]
[1693893296998,55.0,19.309,19.303,34.19]
[1693893297403,90.7978,19.313,19.303,34.19]
[1693893297706,83.996,19.32,19.303,34.19]
[1693893298003,8.076,19.317,19.308,8.079]
[1693893299905,55.0,19.316,19.308,8.079]
[1693893300208,8.076,19.315,19.308,8.079]
[1693893302291,55.0,19.316,19.308,8.079]
[1693893303399,63.076,19.316,19.308,8.079]
[1693893307603,55.0,19.316,19.308,8.079]
[1693893308005,8.075,19.317,19.308,8.079]
[1693893308398,203.36478423,19.348,19.308,8.079]
[1693893308399,26.066,19.336,19.31,27.06]
[1693893308597,26.066,19.336,19.309,251.2062422]
[1693893308598,8.068,19.334,19.32,27.06]
[1693893308797,8.068,19.334,19.324,8.072]
[1693893309396,8.068,19.334,19.323,8.073]
[1693893311512,55.0,19.333,19.323,8.073]
[1693893312009,63.069,19.333,19.319,26.087]
[1693893312508,63.069,19.333,19.321,8.073]
[1693893313212,27.06,19.33,19.313,8.077]
[1693893313396,34.152,19.325,19.313,8.077]
[1693893313597,34.152,19.325,19.312,8.077]
[1693893313803,55.0,19.324,19.312,8.077]
[1693893314099,8.073,19.323,19.312,8.077]
[1693893314302,63.073,19.322,19.312,8.077]
[1693893314499,55.0,19.321,19.312,8.077]
[1693893315504,55.0,19.322,19.312,8.077]
[1693893315899,55.0,19.323,19.312,8.077]
[1693893316205,63.073,19.323,19.312,8.077]
[1693893317316,55.0,19.323,19.312,8.077]
[1693893319614,55.0,19.324,19.312,8.077]
[1693893323416,55.0,19.325,19.312,8.077]
[1693893324705,63.072,19.325,19.312,8.077]
[1693893330419,63.072,19.325,19.313,8.13684612]
[1693893330623,63.072,19.325,19.316,8.075]
[1693893330822,63.072,19.325,19.317,8.13516121]
[1693893331531,63.072,19.325,19.317,16.21016121]
[1693893331726,63.072,19.325,19.318,8.13474009]
[1693893331928,63.072,19.325,19.317,8.075]
[1693893332836,63.072,19.325,19.316,8.076]
[1693893333326,55.0,19.325,19.316,8.076]
[1693893333519,63.072,19.325,19.316,8.076]
[1693893348650,40.70393374,19.326,19.316,8.076]
[1693893348838,26.077,19.328,19.316,8.076]
[1693893349233,8.071,19.327,19.316,8.076]
[1693893349442,91.0224,19.329,19.316,8.076]
[1693893349740,8.071,19.327,19.316,8.076]
[1693893350758,55.0,19.326,19.316,8.076]
[1693893352238,63.072,19.326,19.316,8.076]
[1693893354348,63.072,19.326,19.313,26.096]
[1693893355638,63.072,19.326,19.316,8.076]
[1693893364069,105.39204142,19.326,19.316,8.076]
[1693893364549,63.072,19.326,19.316,8.076]
[1693893365363,55.0,19.326,19.316,8.076]
[1693893366459,8.071,19.328,19.316,8.076]
[1693893366663,99.0924,19.329,19.316,8.076]
[1693893366843,20.0,19.328,19.316,8.076]
[1693893367155,28.071,19.328,19.316,8.076]
[1693893367760,55.0,19.327,19.316,8.076]
[1693893371467,63.071,19.327,19.316,8.076]
[1693893373071,25.90928362,19.326,19.31,8.078]
[1693893373260,34.158,19.322,19.311,8.077]
[1693893373462,8.075,19.319,19.311,8.077]
[1693893373649,55.0,19.318,19.311,8.077]
[1693893374080,55.0,19.319,19.311,8.077]
[1693893376454,89.163,19.319,19.308,8.079]
[1693893376773,89.163,19.319,19.306,8.08]
[1693893376774,20.0,19.318,19.306,8.08]
[1693893376983,55.0,19.317,19.306,8.08]
[1693893377166,55.0,19.317,19.306,91.162]
[1693893377782,63.075,19.317,19.306,91.162]
[1693893378073,55.0,19.317,19.306,91.162]
[1693893378455,63.075,19.317,19.306,91.162]
[1693893386184,55.0,19.317,19.3,26.81]
[1693893386383,63.075,19.317,19.306,91.162]
[1693893397792,8.075,19.317,19.306,91.162]
[1693893398093,8.075,19.317,19.307,2.6067926]
[1693893398280,8.075,19.317,19.31,8.078]
[1693893405200,8.075,19.317,19.306,56.977]
[1693893405402,55.0,19.316,19.307,3.38187386]
[1693893405578,91.126,19.314,19.302,8.081]
[1693893405896,55.0,19.313,19.303,3.91437757]
[1693893406085,8.078,19.31,19.303,11.99537757]
[1693893406392,8.078,19.31,19.303,8.081]
[1693893407978,8.078,19.31,19.304,2.50913938]
[1693893408182,8.078,19.31,19.304,10.59013938]
[1693893408384,8.078,19.31,19.304,8.081]
[1693893410697,8.078,19.31,19.302,2.48755738]
[1693893410998,8.078,19.31,19.303,8.081]
[1693893411389,8.078,19.31,19.302,8.081]
[1693893411587,8.078,19.31,19.303,2.85112076]
[1693893411782,8.078,19.31,19.303,10.93212076]
[1693893412001,8.078,19.31,19.303,8.081]
[1693893412302,8.078,19.31,19.305,8.08]
[1693893412800,34.178,19.31,19.302,3.14960632]
[1693893413101,8.08,19.306,19.299,33.02761036]
[1693893413910,8.08,19.307,19.299,33.02761036]
[1693893414196,8.079,19.308,19.299,33.02761036]
[1693893414401,55.0,19.307,19.299,33.02761036]
[1693893416301,63.08,19.307,19.299,33.02761036]
[1693893416707,55.0,19.307,19.299,33.02761036]
[1693893418490,63.08,19.307,19.299,33.02761036]
[1693893419382,63.08,19.307,19.299,4.94461036]
[1693893419585,63.08,19.307,19.297,4.94461036]
[1693893419785,155.7549,19.307,19.298,8.083]
[1693893419987,155.7549,19.307,19.299,4.94461036]
[1693893420585,155.7549,19.307,19.297,8.083]
[1693893420787,155.7549,19.307,19.296,4.94461036]
[1693893421807,155.7549,19.307,19.299,4.94461036]
[1693893422700,155.7549,19.307,19.294,4.94461036]
[1693893422895,155.7549,19.307,19.298,8.083]
[1693893423706,155.7549,19.307,19.297,8.084]
[1693893423900,155.7549,19.307,19.298,4.94461036]
[1693893424906,155.7549,19.307,19.298,13.02761036]
[1693893426093,155.7549,19.307,19.298,8.083]
[1693893426410,155.7549,19.307,19.299,4.94461036]
[1693893426796,155.7549,19.307,19.296,4.94461036]
[1693893426997,155.7549,19.307,19.297,8.083]
[1693893427196,155.7549,19.307,19.298,4.94461036]
[1693893427397,155.7549,19.307,19.298,13.02761036]
[1693893428210,155.7549,19.307,19.298,4.94461036]
[1693893443420,100.7549,19.307,19.298,13.02761036]
[1693893443625,100.7549,19.307,19.298,8.083]
[1693893443826,100.7549,19.307,19.299,4.94461036]
[1693893444024,100.7549,19.307,19.3,8.082]
[1693893444225,100.7549,19.307,19.301,4.94461036]
[1693893444525,100.7549,19.307,19.3,8.082]
[1693893444825,63.08,19.306,19.3,8.082]
[1693893445620,55.0,19.306,19.3,8.082]
[1693893446323,63.08,19.306,19.3,8.082]
[1693893447824,63.08,19.306,19.298,8.083]
[1693893448022,63.08,19.306,19.299,2.99279732]
[1693893448522,63.08,19.306,19.297,4.60326856]
[1693893449523,63.08,19.306,19.297,12.68726856]
[1693893463224,55.0,19.306,19.297,12.68726856]
[1693893463734,63.08,19.306,19.297,12.68726856]
[1693893475734,63.08,19.306,19.297,4.60326856]
[1693893475950,63.08,19.306,19.296,8.084]
[1693893476446,63.08,19.306,19.297,4.94461036]
[1693893478245,63.08,19.306,19.297,13.02861036]
[1693893478448,63.08,19.306,19.297,8.084]
[1693893479949,55.0,19.306,19.298,4.94461036]
[1693893480149,55.0,19.306,19.3,8.082]
[1693893481653,92.6749,19.307,19.3,8.082]
[1693893483149,55.0,19.306,19.3,8.082]
[1693893489444,100.7549,19.307,19.3,8.082]
[1693893489644,92.6749,19.307,19.3,8.082]
[1693893490744,8.079,19.308,19.3,8.082]
[1693893490964,26.092,19.317,19.301,4.48978495]
[1693893491145,105.7112,19.313,19.306,8.08]
[1693893492143,55.0,19.312,19.305,8.08]
[1693893492556,26.81,19.31,19.29,85.18067836]
[1693893492852,26.81,19.31,19.298,3.8055815]
[1693893492853,34.184,19.307,19.298,3.8055815]
[1693893493057,34.184,19.307,19.298,11.8885815]
[1693893493246,34.184,19.307,19.297,8.084]
[1693893493447,34.184,19.307,19.298,4.51670208]
[1693893493864,55.0,19.306,19.298,12.59970208]
[1693893494159,8.081,19.304,19.298,8.083]
[1693893494351,8.081,19.304,19.298,4.51670208]
[1693893494546,8.081,19.304,19.297,8.084]
[1693893494948,8.081,19.304,19.298,4.51670208]
[1693893495347,8.081,19.304,19.298,12.59970208]
[1693893495547,8.081,19.304,19.298,8.083]
[1693893501367,8.081,19.304,19.293,4.51670208]
[1693893501556,55.0,19.303,19.293,4.51670208]
[1693893501756,91.189,19.3,19.286,51.07661036]
[1693893501958,91.189,19.3,19.29,8.086]
[1693893501959,55.0,19.299,19.29,8.086]
[1693893502270,8.084,19.298,19.291,4.94461036]
[1693893503267,8.084,19.298,19.291,13.03061036]
[1693893503467,8.084,19.298,19.29,8.087]
[1693893503676,8.084,19.298,19.29,4.94461036]
[1693893504757,8.084,19.298,19.289,4.94461036]
[1693893505264,8.084,19.298,19.289,13.03161036]
[1693893508365,8.084,19.298,19.289,4.94461036]
[1693893508572,55.0,19.297,19.288,8.087]
[1693893508768,8.085,19.295,19.289,4.94461036]
[1693893513765,8.085,19.295,19.288,8.087]
[1693893514064,8.085,19.295,19.289,4.94461036]
[1693893515973,8.084,19.296,19.289,8.087]
[1693893516874,8.084,19.296,19.29,13.03061036]
[1693893517075,8.084,19.296,19.29,8.086]
[1693893518066,8.084,19.296,19.288,4.94461036]
[1693893518271,8.084,19.296,19.289,8.087]
[1693893518470,8.084,19.296,19.29,4.94461036]
[1693893518671,8.084,19.296,19.29,13.03061036]
[1693893518872,8.084,19.296,19.29,8.086]
[1693893519578,63.084,19.297,19.291,4.94461036]
[1693893519780,63.084,19.297,19.291,13.03061036]
[1693893519972,63.084,19.297,19.291,4.94461036]
[1693893520172,63.084,19.297,19.29,8.086]
[1693893521373,63.084,19.297,19.283,41.56201659]
[1693893521580,63.084,19.297,19.281,43.08732645]
[1693893521581,63.084,19.297,19.286,8.088]
[1693893521778,63.084,19.297,19.287,4.94461036]
[1693893523483,63.084,19.297,19.287,13.03261036]
[1693893526369,63.084,19.297,19.285,8.088]
[1693893526580,63.084,19.297,19.286,4.94461036]
[1693893526778,63.084,19.297,19.286,13.03261036]
[1693893527282,63.084,19.297,19.286,4.94461036]
[1693893527488,63.084,19.297,19.286,13.03261036]
[1693893553584,8.084,19.298,19.286,116.21561036]
[1693893553796,8.084,19.297,19.286,13.03261036]
[1693893554892,55.0,19.296,19.286,13.03261036]
[1693893555199,8.085,19.295,19.286,13.03261036]
[1693893558696,55.0,19.294,19.286,13.03261036]
[1693893558905,63.085,19.294,19.286,13.03261036]
[1693893562704,159.0291,19.294,19.286,13.03261036]
[1693893599022,104.0291,19.294,19.286,13.03261036]
[1693893601031,55.0,19.293,19.286,13.03261036]
[1693893602025,95.9441,19.294,19.286,13.03261036]
[1693893602814,8.084,19.296,19.286,13.03261036]
[1693893606219,55.0,19.295,19.286,13.03261036]
[1693893606418,63.085,19.295,19.286,13.03261036]
[1693893608746,63.085,19.295,19.286,4.94461036]
[1693893608936,89.205,19.295,19.286,4.94461036]
[1693893610133,89.205,19.295,19.285,4.94461036]
[1693893612021,89.205,19.295,19.284,4.94461036]
[1693893612234,89.205,19.295,19.284,13.03361036]
[1693893614328,26.81,19.29,19.284,4.94461036]
[1693893614527,26.81,19.29,19.284,13.03361036]
[1693893614832,55.0,19.289,19.284,13.03361036]
[1693893617050,26.81,19.29,19.284,13.03361036]
[1693893619048,8.086,19.292,19.284,13.03361036]
[1693893619247,55.0,19.291,19.284,13.03361036]
[1693893624450,63.086,19.291,19.284,13.03361036]
[1693893628549,55.0,19.291,19.284,13.03361036]
[1693893628754,55.0,19.292,19.284,13.03361036]
[1693893633046,63.086,19.292,19.284,13.03361036]
[1693893634251,55.0,19.292,19.284,13.03361036]
[1693893635338,63.086,19.292,19.284,13.03361036]
[1693893649051,55.0,19.292,19.284,13.03361036]
[1693893651949,63.086,19.292,19.284,13.03361036]
[1693893660369,8.086,19.292,19.284,13.03361036]
[1693893667483,55.0,19.291,19.284,13.03361036]
[1693893667783,8.087,19.29,19.284,13.03361036]
[1693893668373,8.087,19.29,19.283,8.089]
[1693893668578,8.087,19.29,19.284,4.94461036]
[1693893670781,8.087,19.29,19.283,4.94461036]
[1693893671085,63.087,19.289,19.283,4.94461036]
[1693893675380,63.087,19.289,19.282,4.94461036]
[1693893675884,63.087,19.289,19.282,13.03461036]
[1693893677584,63.087,19.289,19.282,4.94461036]
[1693893677986,63.087,19.289,19.28,4.94461036]
[1693893678374,63.087,19.289,19.282,8.09]
[1693893678690,63.087,19.289,19.283,4.94461036]
[1693893682882,63.087,19.289,19.283,13.03461036]
[1693893683482,55.0,19.289,19.283,13.03461036]
[1693893685087,63.087,19.289,19.283,13.03461036]
[1693893685587,55.0,19.289,19.283,13.03461036]
[1693893687895,63.087,19.289,19.283,13.03461036]
[1693893688086,55.0,19.289,19.283,13.03461036]
[1693893688575,55.0,19.29,19.283,13.03461036]
[1693893690090,55.0,19.291,19.283,13.03461036]
[1693893690279,55.0,19.292,19.283,13.03461036]
[1693893690479,63.086,19.292,19.283,13.03461036]
[1693893713103,26.81,19.29,19.283,13.03461036]
[1693893713303,55.0,19.289,19.283,13.03461036]
[1693893724093,55.0,19.29,19.283,13.03461036]
[1693893726013,55.0,19.291,19.283,13.03461036]
[1693893728696,63.086,19.291,19.283,13.03461036]
[1693893728901,55.0,19.291,19.283,13.03461036]
[1693893731507,55.0,19.292,19.283,13.03461036]
[1693893745309,98.598,19.293,19.283,13.03461036]
[1693893745310,90.513,19.293,19.283,13.03461036]
[1693893746029,90.513,19.293,19.283,116.23361036]
[1693893746534,8.084,19.296,19.283,116.23361036]
[1693893746715,55.0,19.294,19.283,116.23361036]
[1693893746914,55.0,19.295,19.283,116.23361036]
[1693893749629,63.085,19.295,19.283,13.03461036]
[1693893756734,89.205,19.295,19.283,13.03461036]
[1693893759834,130.81827112,19.295,19.283,13.03461036]
[1693893762239,104.69827112,19.295,19.283,13.03461036]
[1693893765534,96.61327112,19.295,19.283,13.03461036]
[1693893765738,104.69827112,19.295,19.283,13.03461036]
[1693893788359,55.0,19.295,19.283,13.03461036]
[1693893788660,91.8863,19.299,19.283,13.03461036]
[1693893788867,28.084,19.298,19.283,13.03461036]
[1693893789875,55.0,19.297,19.283,13.03461036]
[1693893790174,63.084,19.297,19.283,13.03461036]
[1693893810184,8.084,19.297,19.283,13.03461036]
[1693893811391,55.0,19.296,19.283,13.03461036]
[1693893813594,63.084,19.296,19.283,13.03461036]
[1693893813984,55.0,19.296,19.283,13.03461036]
[1693893823696,63.084,19.296,19.283,13.03461036]
[1693893824002,55.0,19.296,19.283,13.03461036]
[1693893824193,55.0,19.297,19.283,13.03461036]
[1693893824785,63.084,19.297,19.283,13.03461036]
[1693893856125,26.81,19.29,19.283,4.94461036]
[1693893856320,8.087,19.289,19.283,4.94461036]
[1693893856511,55.0,19.288,19.283,13.03461036]
[1693893856707,63.088,19.288,19.282,8.09]
[1693893856911,63.088,19.288,19.28,8.091]
[1693893857215,63.088,19.288,19.276,4.94461036]
[1693893857514,63.088,19.288,19.279,8.091]
[1693893857708,63.088,19.288,19.28,4.94461036]
[1693893857911,63.088,19.288,19.28,13.03561036]
[1693893858300,63.088,19.288,19.278,4.94461036]
[1693893858502,166.26,19.288,19.278,4.94461036]
[1693893858721,20.0,19.287,19.267,26.158]
[1693893858923,20.0,19.287,19.268,8.095]
[1693893858924,26.81,19.28,19.268,8.095]
[1693893859115,34.237,19.277,19.268,8.095]
[1693893859316,55.0,19.276,19.268,8.095]
[1693893859622,63.093,19.276,19.268,8.095]
[1693893861323,63.093,19.276,19.265,8.097]
[1693893871437,3.11915109,19.278,19.265,8.097]
[1693893871732,31.21115109,19.278,19.265,8.097]
[1693893872837,55.0,19.277,19.265,8.097]
[1693893873136,63.092,19.277,19.265,8.097]
[1693893873344,55.0,19.277,19.265,8.097]
[1693893874324,28.092,19.278,19.265,8.097]
[1693893874524,31.29331597,19.278,19.265,8.097]
[1693893874740,55.0,19.277,19.265,8.097]
[1693893878142,2.51524832,19.278,19.265,8.097]
[1693893878327,90.3025,19.28,19.266,75.0]
[1693893878537,90.3025,19.28,19.27,221.409]
[1693893878940,7.589,19.285,19.27,221.409]
[1693893879126,4.94461036,19.284,19.27,221.409]
[1693893879326,13.03361036,19.284,19.27,221.409]
[1693893880036,4.94461036,19.282,19.27,221.409]
[1693893882035,26.81,19.28,19.27,91.331]
[1693893882251,4.94461036,19.279,19.27,91.331]
[1693893884149,55.0,19.278,19.27,91.331]
[1693893884751,63.092,19.278,19.27,8.095]
[1693893885133,55.0,19.278,19.27,8.095]
[1693893914567,91.1678,19.279,19.27,8.095]
[1693893914769,2.52432392,19.278,19.27,8.095]
[1693893915253,91.1678,19.279,19.27,8.095]
[1693893917272,55.0,19.278,19.27,8.095]
[1693893923965,63.092,19.278,19.27,8.095]
[1693893925569,55.0,19.278,19.27,8.095]
[1693893944199,91.1678,19.279,19.27,8.095]
[1693893944407,4.21869817,19.278,19.27,8.095]
[1693893958010,55.0,19.278,19.27,8.095]
[1693893969527,63.092,19.278,19.27,8.095]
[1693893970120,55.0,19.278,19.27,8.095]
[1693893970322,63.092,19.278,19.27,8.095]
[1693893970516,55.0,19.278,19.27,8.095]
[1693893987137,55.0,19.278,19.266,20.0]
[1693893987330,55.0,19.278,19.27,8.095]
[1693893991525,8.092,19.278,19.263,53.09386231]
[1693893991827,8.093,19.274,19.266,8.096]
[1693893992223,55.0,19.273,19.266,8.096]
[1693893992418,63.094,19.273,19.266,8.096]
[1693893997239,55.0,19.273,19.266,34.256]
[1693893998123,63.094,19.273,19.266,34.256]
[1693893998324,55.0,19.273,19.266,34.256]
[1693893999341,55.0,19.274,19.266,34.256]
[1693894000832,63.093,19.274,19.266,34.256]
[1693894001548,63.093,19.274,19.266,8.096]
[1693894012242,63.093,19.274,19.264,8.097]
[1693894012434,63.093,19.274,19.261,26.166]
[1693894012638,8.095,19.27,19.263,8.098]
[1693894012839,63.096,19.269,19.263,8.098]
[1693894017262,55.0,19.269,19.263,8.098]
[1693894018359,63.096,19.269,19.263,8.098]
[1693894019654,55.0,19.269,19.263,8.098]
[1693894020761,63.095,19.269,19.263,8.098]
[1693894021251,55.0,19.269,19.263,8.098]
[1693894022658,26.81,19.27,19.263,34.262]
[1693894022859,8.094,19.272,19.263,34.262]
[1693894024054,63.095,19.271,19.263,34.262]
[1693894024259,63.095,19.271,19.263,8.098]
[1693894026156,96.1772,19.273,19.263,34.262]
[1693894026562,8.093,19.275,19.263,34.262]
[1693894027962,55.0,19.274,19.263,34.262]
[1693894028267,8.094,19.273,19.263,34.262]
[1693894028465,55.0,19.272,19.263,34.262]
[1693894030372,63.094,19.272,19.263,34.262]
[1693894031863,55.0,19.272,19.263,34.262]
[1693894032369,63.094,19.273,19.263,34.262]
[1693894033566,55.0,19.273,19.263,34.262]
[1693894034571,63.094,19.273,19.263,34.262]
[1693894054482,55.0,19.273,19.263,34.262]
[1693894057589,63.094,19.273,19.263,34.262]
[1693894057789,63.094,19.273,19.263,8.098]
[1693894061992,26.81,19.27,19.263,8.098]
[1693894062191,55.0,19.269,19.263,8.098]
[1693894063196,94.5343,19.275,19.263,8.098]
[1693894064491,55.0,19.274,19.263,8.098]
[1693894080208,63.093,19.274,19.263,8.098]
[1693894081304,94.5343,19.275,19.263,8.098]
[1693894082905,55.0,19.274,19.263,8.098]
[1693894086018,63.093,19.274,19.263,8.098]
[1693894086304,55.0,19.274,19.263,8.098]
[1693894087613,63.093,19.274,19.263,8.098]
[1693894088118,55.0,19.274,19.263,8.098]
[1693894094527,63.094,19.274,19.263,8.098]
[1693894100417,63.094,19.274,19.261,160.424]
[1693894100418,26.81,19.27,19.261,8.098]
[1693894100619,55.0,19.269,19.263,8.098]
[1693894104525,94.5343,19.275,19.263,8.098]
[1693894104727,55.0,19.274,19.263,8.098]
[1693894105725,8.094,19.273,19.263,8.098]
[1693894105929,55.0,19.272,19.263,8.098]
[1693894113127,55.0,19.273,19.263,8.098]
[1693894114132,8.094,19.273,19.263,8.098]
[1693894114327,55.0,19.272,19.263,8.098]
[1693894126642,55.0,19.273,19.263,8.098]
[1693894126843,63.094,19.273,19.263,8.098]
[1693894127541,55.0,19.273,19.263,8.098]
[1693894129045,63.094,19.273,19.263,8.098]
[1693894131248,55.0,19.273,19.263,8.098]
[1693894139274,8.094,19.273,19.263,8.098]
[1693894139475,55.0,19.272,19.263,8.098]
[1693894145279,55.0,19.273,19.263,8.098]
[1693894148375,55.0,19.274,19.263,8.098]
[1693894148675,63.094,19.274,19.263,8.098]
[1693894181597,34.905,19.27,19.263,8.098]
[1693894181798,55.0,19.269,19.263,8.098]
[1693894197525,94.5343,19.275,19.263,8.098]
[1693894198618,102.6273,19.275,19.263,8.098]
[1693894198820,55.0,19.274,19.263,8.098]
[1693894200021,63.094,19.274,19.263,8.098]
[1693894204629,55.0,19.274,19.263,8.098]
[1693894205223,63.094,19.274,19.263,8.098]
[1693894230545,94.5343,19.275,19.263,8.098]
[1693894230753,102.6273,19.275,19.263,8.098]
[1693894231054,94.5343,19.275,19.263,8.098]
[1693894231252,102.6273,19.275,19.263,8.098]
[1693894231940,55.0,19.274,19.263,8.098]
[1693894232251,63.093,19.274,19.263,8.098]
[1693894239361,120.164,19.274,19.263,8.098]
[1693894242959,94.5343,19.275,19.263,8.098]
[1693894243145,94.5343,19.275,19.263,168.508]
[1693894244448,55.0,19.274,19.263,168.508]
[1693894245256,94.5343,19.275,19.263,168.508]
[1693894246661,55.0,19.274,19.263,168.508]
[1693894299495,63.093,19.274,19.263,8.098]
[1693894299688,89.242,19.274,19.263,8.098]
[1693894299889,89.242,19.274,19.256,57.124]
[1693894300197,89.242,19.274,19.257,20.0]
[1693894300198,26.81,19.27,19.257,20.0]
[1693894300396,8.097,19.266,19.259,8.099]
[1693894303402,8.096,19.267,19.259,8.099]
[1693894303594,55.0,19.266,19.259,8.099]
[1693894304191,63.097,19.266,19.259,8.099]